fUST/lending_fUST_20250601
["ID","MTS","AMOUNT","RATE_DAILY","PERIOD"]
[363426908,1748721057325,-500.0,0.00021918,2]
[363426911,1748721057337,-500.0,0.00021918,2]
[363426912,1748721057347,-500.0,0.00021918,2]
[363426915,1748721057357,-500.0,0.00021918,2]
[363426916,1748721057367,-500.0,0.00021918,2]
[363426918,1748721057376,-500.0,0.00021918,2]
[363426921,1748721057387,-500.0,0.00021918,2]
[363426923,1748721057397,-500.0,0.00021918,2]
[363426925,1748721057407,-500.0,0.00021918,2]
[363426927,1748721057416,-500.0,0.00021918,2]
[363426929,1748721057426,-500.0,0.00021918,2]
[363426931,1748721057435,-500.0,0.00021918,2]
[363426933,1748721057445,-553.95248901,0.00021918,2]
[363426935,1748721057455,-500.0,0.00021918,2]
[363426937,1748721057465,-500.0,0.00021918,2]
[363426939,1748721057475,-500.0,0.00021918,2]
[363426941,1748721057484,-500.0,0.00021918,2]
[363426943,1748721057493,-500.0,0.00021918,2]
[363426945,1748721057503,-500.0,0.00021918,2]
[363426947,1748721057512,-500.0,0.00021918,2]
[363426949,1748721057522,-500.0,0.00021918,2]
[363426951,1748721057531,-500.0,0.00021918,2]
[363426953,1748721057541,-500.0,0.00021918,2]
[363426955,1748721057551,-500.0,0.00021918,2]
[363426957,1748721057561,-500.0,0.00021918,2]
[363426959,1748721057570,-500.0,0.00021918,2]
[363426960,1748721057580,-500.0,0.00021918,2]
[363426962,1748721057589,-500.0,0.00021918,2]
[363426964,1748721057599,-500.0,0.00021918,2]
[363426966,1748721057608,-500.0,0.00021918,2]
[363426968,1748721057617,-500.0,0.00021918,2]
[363426970,1748721057626,-500.0,0.00021918,2]
[363426972,1748721057635,-500.0,0.00021918,2]
[363426974,1748721057645,-500.0,0.00021918,2]
[363426976,1748721057654,-500.0,0.00021918,2]
[363426978,1748721057664,-500.0,0.00021918,2]
[363426980,1748721057674,-500.0,0.00021918,2]
[363426982,1748721057684,-500.0,0.00021918,2]
[363426984,1748721057693,-500.0,0.00021918,2]
[363426986,1748721057704,-500.0,0.00021918,2]
[363426988,1748721057714,-500.0,0.00021918,2]
[363426990,1748721057723,-500.0,0.00021918,2]
[363426992,1748721057732,-500.0,0.00021918,2]
[363426994,1748721057743,-500.0,0.00021918,2]
[363426996,1748721057754,-500.0,0.00021918,2]
[363426998,1748721057767,-500.0,0.00021918,2]
[363427001,1748721057781,-500.0,0.00021918,2]
[363427003,1748721057791,-500.0,0.00021918,2]
[363427005,1748721057801,-500.0,0.00021918,2]
[363427007,1748721057810,-500.0,0.00021918,2]
[363427009,1748721057819,-500.0,0.00021918,2]
[363427011,1748721057829,-500.0,0.00021918,2]
[363427013,1748721057838,-500.0,0.00021918,2]
[363427015,1748721057849,-500.0,0.00021918,2]
[363427017,1748721057858,-500.0,0.00021918,2]
[363427019,1748721057868,-500.0,0.00021918,2]
[363427021,1748721057878,-500.0,0.00021918,2]
[363427023,1748721057887,-500.0,0.00021918,2]
[363427025,1748721057897,-500.0,0.00021918,2]
[363427027,1748721057906,-500.0,0.00021918,2]
[363427029,1748721057916,-500.0,0.00021918,2]
[363427031,1748721057925,-500.0,0.00021918,2]
[363427033,1748721057935,-500.0,0.00021918,2]
[363427035,1748721057945,-500.0,0.00021918,2]
[363427037,1748721057955,-500.0,0.00021918,2]
[363427039,1748721057965,-500.0,0.00021918,2]
[363427041,1748721057974,-500.0,0.00021918,2]
[363427043,1748721057983,-500.0,0.00021918,2]
[363427045,1748721057992,-500.0,0.00021918,2]
[363427047,1748721058002,-650.0,0.00021918,2]
[363427049,1748721058011,-500.0,0.00021918,2]
[363427051,1748721058020,-500.0,0.00021918,2]
[363427053,1748721058029,-500.0,0.00021918,2]
[363427055,1748721058039,-500.0,0.00021918,2]
[363427057,1748721058048,-500.0,0.00021918,2]
[363427059,1748721058058,-155.904382,0.00021918,7]
[363427061,1748721058068,-151.0,0.00021918,7]
[363427063,1748721058078,-172.985015,0.00021918,7]
[363427065,1748721058087,-385.558465,0.00021918,7]
[363427067,1748721058097,-385.558465,0.00021918,7]
[363427069,1748721058108,-151.0,0.00021918,7]
[363427071,1748721058117,-151.0,0.00021918,7]
[363427073,1748721058127,-158.043691,0.00021918,7]
[363427075,1748721058136,-151.0,0.00021918,7]
[363427077,1748721058146,-158.043691,0.00021918,7]
[363427079,1748721058156,-357.937802,0.00021918,7]
[363427081,1748721058166,-357.937802,0.00021918,7]
[363427083,1748721058175,-151.0,0.00021918,7]
[363427085,1748721058186,-219.346504,0.00021918,7]
[363427087,1748721058196,-219.346504,0.00021918,7]
[363427089,1748721058206,-151.0,0.00021918,7]
[363427091,1748721058216,-187.750318,0.00021918,7]
[363427093,1748721058226,-187.750326,0.00021918,7]
[363427095,1748721058236,-2000.0,0.00022,7]
[363427097,1748721058245,-1119.69616097,0.00022,7]
[363427099,1748721058255,-20761.94517166,0.00022,2]
[363427101,1748721058265,-1027.83,0.00022,7]
[363427103,1748721058274,-7560.03586419,0.00022,2]
[363427106,1748721058284,-12000.0,0.00022,2]
[363427108,1748721058295,-142163.70678425,0.00022,7]
[363427124,1748721058450,-13549.51321575,0.00022,7]
[363427126,1748721058460,-151.0,0.00022,7]
[363427128,1748721058470,-151.0,0.00022,7]
[363427129,1748721058480,-151.87808,0.00022,7]
[363427130,1748721058490,-151.0,0.00022,7]
[363427131,1748721058500,-151.0,0.00022,7]
[363427132,1748721058510,-151.0,0.00022,7]
[363427133,1748721058519,-1409.81,0.00022,2]
[363427134,1748721058529,-151.0,0.00022,7]
[363427135,1748721058539,-151.0,0.00022,7]
[363427136,1748721058548,-1043.700093,0.00022,7]
[363427137,1748721058558,-1043.700093,0.00022,7]
[363427138,1748721058569,-246.442502,0.00022,7]
[363427139,1748721058578,-246.442502,0.00022,7]
[363427140,1748721058588,-406.881495,0.00022,7]
[363427141,1748721058598,-406.881495,0.00022,7]
[363427142,1748721058608,-406.881495,0.00022,7]
[363427143,1748721058617,-151.0,0.00022,7]
[363427145,1748721058627,-385.558465,0.00022,7]
[363427147,1748721058636,-385.558465,0.00022,7]
[363427149,1748721058645,-151.0,0.00022,7]
[363427151,1748721058655,-151.0,0.00022,7]
[363427152,1748721058664,-6.75209925,0.00022,7]
[363427155,1748721058676,-151.29159175,0.00022,7]
[363427157,1748721058685,-151.0,0.00022,7]
[363427159,1748721058695,-158.043691,0.00022,7]
[363427161,1748721058704,-546.570645,0.00022,7]
[363427163,1748721058713,-546.570645,0.00022,7]
[363427165,1748721058722,-546.570645,0.00022,7]
[363427167,1748721058732,-546.570645,0.00022,7]
[363427169,1748721058741,-151.0,0.00022,7]
[363427171,1748721058751,-151.0,0.00022,7]
[363427172,1748721058759,-151.0,0.00022,7]
[363427174,1748721058769,-151.0,0.00022,7]
[363427176,1748721058782,-600.639956,0.00022,2]
[363427178,1748721058792,-600.639956,0.00022,2]
[363427180,1748721058801,-357.937802,0.00022,7]
[363427182,1748721058810,-357.937802,0.00022,7]
[363427184,1748721058822,-190.996215,0.00022,7]
[363427186,1748721058831,-190.996215,0.00022,7]
[363427188,1748721058841,-190.996215,0.00022,7]
[363427190,1748721058851,-190.996215,0.00022,7]
[363427192,1748721058861,-151.0,0.00022,7]
[363427194,1748721058870,-219.346504,0.00022,7]
[363427196,1748721058879,-219.346504,0.00022,7]
[363427198,1748721058888,-314.84782018,0.00022,7]
[363427200,1748721058897,-842.5625,0.00022,7]
[363427202,1748721058906,-314.5372,0.00022,7]
[363427204,1748721058916,-151.0,0.00022,7]
[363427206,1748721058925,-314.5372,0.00022,7]
[363427208,1748721058934,-212.77096907,0.00022,7]
[363427210,1748721058943,-928.93606,0.00022,7]
[363427212,1748721058953,-928.93606973,0.00022,7]
[363427214,1748721058962,-277.170479,0.00022,7]
[363427216,1748721058972,-277.170487,0.00022,7]
[363427218,1748721058980,-245.958198,0.00022,7]
[363427220,1748721058989,-500.0,0.00022023,2]
[363427222,1748721058999,-287.35,0.000221,7]
[363427224,1748721059008,-4228.86761644,0.00022139,2]
[363427226,1748721059018,-151.0,0.00022141,7]
[363427228,1748721059028,-814.93536587,0.00022141,6]
[363427230,1748721059037,-3000.0,0.00022153,2]
[363427232,1748721059046,-900.0,0.00022156,2]
[363427234,1748721059056,-212.139541,0.0002216,7]
[363427236,1748721059065,-212.139541,0.0002216,7]
[363427238,1748721059074,-151.0,0.0002216,7]
[363427240,1748721059084,-151.0,0.0002216,7]
[363427242,1748721059097,-430.0,0.00022191,2]
[363427244,1748721059106,-980.1,0.00022191,2]
[363427246,1748721059116,-1448.02,0.00022191,2]
[363427248,1748721059125,-430.0,0.00022191,2]
[363427250,1748721059135,-568.31405736,0.00022191,2]
[363427252,1748721059147,-474.55340243,0.00022191,2]
[363427257,1748721059188,-430.0,0.00016438,2]
[363427259,1748721059198,-430.0,0.00016712,2]
[363427261,1748721059208,-430.0,0.00016712,2]
[363427263,1748721059217,-185.09146306,0.00016986,2]
[363427265,1748721059227,-140.20254021,0.00022191,2]
[363427279,1748721059352,-1373.65273462,0.00022191,2]
[363427281,1748721059365,-362.18726538,0.00022191,2]
[363427283,1748721059376,-1885.75,0.00022191,2]
[363427285,1748721059387,-2122.85,0.00022191,2]
[363427287,1748721059397,-430.0,0.00022191,2]
[363427289,1748721059407,-445.17,0.00022191,2]
[363427291,1748721059417,-1594.04273462,0.00022191,2]
[363427294,1748721059429,-528.8468621,0.00022191,2]
[363427296,1748721059443,-519.9164996,0.00022191,2]
[363427362,1748721060125,-276.16262785,0.00016711,2]
[363427368,1748721060165,-23.83737215,0.00016711,2]
[363427370,1748721060176,-292.29537495,0.00016986,2]
[363427372,1748721060189,-137.70462505,0.00016986,2]
[363427374,1748721060198,-400.19537495,0.0001726,2]
[363427384,1748721060295,-5286.0,0.00016986,3]
[363427386,1748721060308,-5983.08700297,0.00016986,3]
[363427389,1748721060320,-1395.89344691,0.00016986,3]
[363427391,1748721060330,-29.80462505,0.0001726,2]
[363427393,1748721060342,-430.0,0.00017534,2]
[363427395,1748721060352,-1403.55293382,0.00017691,7]
[363427397,1748721060364,-6755.17531223,0.00017691,7]
[363427399,1748721060377,-399.99760524,0.00017691,7]
[363427401,1748721060389,-4106.25459859,0.00017691,7]
[363427403,1748721060399,-430.0,0.00017808,2]
[363427405,1748721060408,-430.0,0.00018082,2]
[363427407,1748721060418,-430.0,0.00018356,2]
[363427409,1748721060428,-430.0,0.0001863,2]
[363427411,1748721060437,-430.0,0.00018904,2]
[363427413,1748721060447,-430.0,0.00019178,2]
[363427415,1748721060456,-430.0,0.00019452,2]
[363427417,1748721060466,-430.0,0.00019726,2]
[363427419,1748721060476,-46.90480546,0.0002,2]
[363427422,1748721060492,-495.35519454,0.0002,2]
[363427424,1748721060501,-150.0,0.00020273,2]
[363427426,1748721060512,-369.50390368,0.00022191,2]
[363427428,1748721060521,-842.52,0.00022191,2]
[363427430,1748721060532,-2477.92,0.00022191,2]
[363427432,1748721060542,-430.0,0.00022191,2]
[363427434,1748721060551,-184.20551051,0.00022191,2]
[363427436,1748721060564,-1025.17448949,0.00022191,2]
[363427438,1748721060574,-23.61854067,0.00022191,2]
[363427440,1748721060586,-719.94145933,0.00022191,2]
[363427442,1748721060597,-1121.54,0.00022191,2]
[363427444,1748721060607,-1421.45,0.00022191,2]
[363427446,1748721060617,-1689.57,0.00022191,2]
[363427448,1748721060626,-853.47,0.00022191,2]
[363427450,1748721060636,-696.83,0.00022191,2]
[363427452,1748721060647,-2114.45,0.00022191,2]
[363427454,1748721060657,-1160.86,0.00022191,2]
[363427456,1748721060666,-657.57,0.00022191,2]
[363427458,1748721060675,-151.0,0.000222,10]
[363427460,1748721060685,-4228.86761644,0.00022378,2]
[363427462,1748721060695,-1435.40391992,0.000224,3]
[363427464,1748721060712,-3610.76804319,0.000224,3]
[363427466,1748721060724,-814.93536587,0.00022417,7]
[363427468,1748721060734,-488.38,0.00022465,2]
[363427470,1748721060743,-1448.02,0.00022465,2]
[363427472,1748721060753,-565.37300411,0.00022465,2]
[363427474,1748721060763,-1183.07,0.00022465,2]
[363427476,1748721060772,-1735.84,0.00022465,2]
[363427479,1748721060782,-1885.75,0.00022465,2]
[363427481,1748721060793,-2122.85,0.00022465,2]
[363427482,1748721060804,-158.57608944,0.00022465,2]
[363427484,1748721060817,-369.16391056,0.00022465,2]
[363427485,1748721060827,-445.17,0.00022465,2]
[363427486,1748721060836,-3012.31,0.00022465,2]
[363427487,1748721060846,-842.52,0.00022465,2]
[363427488,1748721060856,-2477.92,0.00022465,2]
[363427489,1748721060866,-506.45,0.00022465,2]
[363427490,1748721060876,-1209.38,0.00022465,2]
[363427491,1748721060885,-743.56,0.00022465,2]
[363427492,1748721060895,-459.94808431,0.00022465,2]
[363427493,1748721061001,157.39788139,6.8e-07,2]
[363430339,1748721353537,184.35433166,6.8e-07,2]
[363430342,1748721370909,667.480186,0.00013699,2]
[363430345,1748721654410,191.99786986,6.8e-07,2]
[363431223,1748721955351,191.99786986,6.8e-07,2]
[363431711,1748721983741,7735.69991121,0.00015,4]
[363431713,1748721983764,10903.15789474,0.00015,4]
[363431715,1748721983794,9494.22351771,0.00015,4]
[363431919,1748722028120,-372.6225516,0.00015506,2]
[363431920,1748722028142,-3182.2735954,0.00015896,2]
[363431921,1748722028162,-189.97961905,0.00016337,2]
[363431922,1748722028184,-561.28328537,0.00016436,2]
[363431923,1748722028204,-28.43945097,0.00016437,2]
[363431924,1748722050084,-166.35724654,0.00015643,2]
[363431962,1748722232531,-2499.36383746,0.00015643,2]
[363431964,1748722232541,-300.0,0.00016436,2]
[363431966,1748722232551,-160.0,0.00016437,2]
[363431968,1748722232561,-500.0,0.00016437,2]
[363431970,1748722232571,-500.0,0.00016437,2]
[363431972,1748722232580,-500.0,0.00016437,2]
[363431974,1748722232589,-500.0,0.00016437,2]
[363431976,1748722232599,-421.34976908,0.00016437,2]
[363431978,1748722232608,-500.0,0.00016437,2]
[363431980,1748722232617,-430.0,0.00016438,2]
[363431982,1748722232627,-430.0,0.00016438,2]
[363431984,1748722232637,-430.0,0.00016438,2]
[363431986,1748722232648,-430.0,0.00016438,2]
[363431988,1748722232657,-370.0,0.00016438,2]
[363431990,1748722232667,-405.52953851,0.00016438,2]
[363431992,1748722232676,-430.0,0.00016438,2]
[363431994,1748722232685,-430.0,0.00016438,2]
[363431996,1748722232694,-479.9,0.00016438,2]
[363431998,1748722232703,-430.0,0.00016438,2]
[363432000,1748722232713,-365.0,0.00016438,2]
[363432002,1748722232722,-430.0,0.00016438,2]
[363432004,1748722232732,-430.0,0.00016438,2]
[363432006,1748722232741,-430.0,0.00016438,2]
[363432008,1748722232750,-430.0,0.00016438,2]
[363432010,1748722232760,-288.03473484,0.00016438,2]
[363432012,1748722232770,-430.0,0.00016438,2]
[363432014,1748722232779,-406.5015007,0.00016438,2]
[363432016,1748722232789,-430.0,0.00016438,2]
[363432018,1748722232798,-430.0,0.00016438,2]
[363432020,1748722232808,-490.0,0.00016438,2]
[363432022,1748722232817,-430.0,0.00016438,2]
[363432024,1748722232827,-433.87876234,0.00016438,2]
[363432026,1748722232837,-430.0,0.00016438,2]
[363432028,1748722232846,-430.0,0.00016438,2]
[363432030,1748722232855,-404.14285129,0.00016438,2]
[363432032,1748722232864,-430.0,0.00016438,2]
[363432035,1748722232875,-430.0,0.00016438,2]
[363432037,1748722232885,-430.0,0.00016438,2]
[363432039,1748722232894,-474.95864272,0.00016438,2]
[363432041,1748722232904,-450.0,0.00016438,2]
[363432043,1748722232914,-436.83372662,0.00016438,2]
[363432045,1748722232923,-430.0,0.00016438,2]
[363432046,1748722232932,-422.36409094,0.00016438,2]
[363432049,1748722232942,-160.53613233,0.00016438,2]
[363432051,1748722232951,-430.0,0.00016438,2]
[363432053,1748722232961,-430.0,0.00016438,2]
[363432055,1748722232970,-430.0,0.00016438,2]
[363432056,1748722232979,-430.0,0.00016438,2]
[363432059,1748722232989,-430.0,0.00016438,2]
[363432061,1748722232999,-430.0,0.00016438,2]
[363432063,1748722233008,-430.0,0.00016438,2]
[363432065,1748722233017,-430.0,0.00016438,2]
[363432067,1748722233027,-450.0,0.00016438,2]
[363432068,1748722233037,-450.0,0.00016438,2]
[363432071,1748722233047,-1000.0,0.00016438,2]
[363432073,1748722233057,-431.38542662,0.00016438,2]
[363432075,1748722233067,-327.33540601,0.00016438,2]
[363432077,1748722233076,-450.0,0.00016438,2]
[363432080,1748722233095,-430.0,0.00016438,2]
[363432082,1748722233105,-450.0,0.00016438,2]
[363432084,1748722233115,-450.0,0.00016438,2]
[363432086,1748722233125,-430.0,0.00016438,2]
[363432088,1748722233135,-450.0,0.00016438,2]
[363432090,1748722233145,-430.0,0.00016438,2]
[363432092,1748722233156,-430.0,0.00016438,2]
[363432094,1748722233167,-450.0,0.00016438,2]
[363432096,1748722233177,-430.0,0.00016438,2]
[363432098,1748722233187,-450.0,0.00016438,2]
[363432100,1748722233197,-450.0,0.00016438,2]
[363432102,1748722233207,-450.0,0.00016438,2]
[363432105,1748722233217,-430.0,0.00016438,2]
[363432107,1748722233226,-450.0,0.00016438,2]
[363432109,1748722233236,-450.0,0.00016438,2]
[363432110,1748722233246,-450.0,0.00016438,2]
[363432113,1748722233255,-430.0,0.00016438,2]
[363432134,1748722233458,-430.0,0.00016438,2]
[363432136,1748722233468,-450.0,0.00016438,2]
[363432138,1748722233478,-450.0,0.00016438,2]
[363432140,1748722233489,-152.97749869,0.00016438,2]
[363432142,1748722233498,-430.0,0.00016438,2]
[363432144,1748722233508,-450.0,0.00016438,2]
[363432146,1748722233518,-430.0,0.00016438,2]
[363432148,1748722233528,-450.0,0.00016438,2]
[363432150,1748722233537,-430.0,0.00016438,2]
[363432152,1748722233547,-450.0,0.00016438,2]
[363432154,1748722233557,-379.40900658,0.00016438,2]
[363432156,1748722233566,-430.0,0.00016438,2]
[363432158,1748722233576,-430.0,0.00016438,2]
[363432160,1748722233586,-430.0,0.00016438,2]
[363432162,1748722233596,-430.0,0.00016438,2]
[363432164,1748722233605,-450.0,0.00016438,2]
[363432166,1748722233616,-430.0,0.00016438,2]
[363432168,1748722233625,-450.0,0.00016438,2]
[363432170,1748722233635,-430.0,0.00016438,2]
[363432172,1748722233646,-430.0,0.00016438,2]
[363432174,1748722233656,-450.0,0.00016438,2]
[363432176,1748722233665,-450.0,0.00016438,2]
[363432179,1748722233675,-430.0,0.00016438,2]
[363432180,1748722233684,-430.0,0.00016438,2]
[363432182,1748722233694,-450.0,0.00016438,2]
[363432185,1748722233703,-430.0,0.00016438,2]
[363432186,1748722233713,-450.0,0.00016438,2]
[363432188,1748722233722,-450.0,0.00016438,2]
[363432190,1748722233731,-450.0,0.00016438,2]
[363432193,1748722233742,-168.21391806,0.00016438,2]
[363432195,1748722233751,-430.0,0.00016438,2]
[363432197,1748722233760,-430.0,0.00016438,2]
[363432198,1748722233770,-430.0,0.00016438,2]
[363432200,1748722233779,-430.0,0.00016438,2]
[363432202,1748722233789,-430.0,0.00016438,2]
[363432205,1748722233798,-490.0,0.00016438,2]
[363432207,1748722233808,-296.07466001,0.00016438,2]
[363432209,1748722233817,-430.0,0.00016438,2]
[363432211,1748722233827,-450.0,0.00016438,2]
[363432213,1748722233836,-430.0,0.00016438,2]
[363432215,1748722233845,-401.46252826,0.00016438,2]
[363432217,1748722233854,-549.36655965,0.00016438,2]
[363432219,1748722233863,-450.0,0.00016438,2]
[363432221,1748722233873,-430.0,0.00016438,2]
[363432223,1748722233883,-430.0,0.00016438,2]
[363432225,1748722233893,-626.51,0.00016438,2]
[363432227,1748722233903,-450.0,0.00016438,2]
[363432229,1748722233912,-626.51,0.00016438,2]
[363432231,1748722233922,-626.51,0.00016438,2]
[363432233,1748722233932,-626.51,0.00016438,2]
[363432235,1748722233941,-626.51,0.00016438,2]
[363432237,1748722233950,-626.51,0.00016438,2]
[363432239,1748722233960,-626.51,0.00016438,2]
[363432241,1748722233970,-626.51,0.00016438,2]
[363432243,1748722233979,-626.51,0.00016438,2]
[363432245,1748722233988,-430.0,0.00016438,2]
[363432247,1748722233998,-450.0,0.00016438,2]
[363432249,1748722234008,-430.0,0.00016438,2]
[363432251,1748722234017,-430.0,0.00016438,2]
[363432253,1748722234026,-430.0,0.00016438,2]
[363432254,1748722234036,-430.0,0.00016438,2]
[363432256,1748722234045,-430.0,0.00016438,2]
[363432258,1748722234055,-430.0,0.00016438,2]
[363432260,1748722234064,-400.0,0.00016438,2]
[363432262,1748722234074,-430.0,0.00016438,2]
[363432264,1748722234084,-430.0,0.00016438,2]
[363432266,1748722234097,-430.0,0.00016438,2]
[363432268,1748722234107,-450.0,0.00016438,2]
[363432270,1748722234118,-430.0,0.00016438,2]
[363432272,1748722234129,-400.0,0.00016438,2]
[363432274,1748722234138,-430.0,0.00016438,2]
[363432276,1748722234151,-430.0,0.00016438,2]
[363432278,1748722234162,-450.0,0.00016438,2]
[363432280,1748722234173,-430.0,0.00016438,2]
[363432281,1748722234182,-430.0,0.00016438,2]
[363432283,1748722234193,-400.0,0.00016438,2]
[363432285,1748722234203,-430.0,0.00016438,2]
[363432287,1748722234213,-430.0,0.00016438,2]
[363432289,1748722234225,-430.0,0.00016438,2]
[363432291,1748722234235,-430.0,0.00016438,2]
[363432293,1748722234246,-430.0,0.00016438,2]
[363432295,1748722234257,-430.0,0.00016438,2]
[363432296,1748722234272,-450.0,0.00016438,2]
[363432298,1748722234282,-552.66735733,0.00016438,2]
[363432300,1748722234293,-450.0,0.00016438,2]
[363432302,1748722234305,-450.0,0.00016438,2]
[363432304,1748722234316,-430.0,0.00016438,2]
[363432306,1748722234327,-430.0,0.00016438,2]
[363432308,1748722234340,-430.0,0.00016438,2]
[363432310,1748722234351,-430.0,0.00016438,2]
[363432312,1748722234363,-430.0,0.00016438,2]
[363432314,1748722234374,-1489.19,0.00016438,2]
[363432316,1748722234384,-1489.19,0.00016438,2]
[363432318,1748722234399,-1489.19,0.00016438,2]
[363432319,1748722234411,-1489.19,0.00016438,2]
[363432321,1748722234422,-1489.19,0.00016438,2]
[363432323,1748722234433,-1489.19,0.00016438,2]
[363432325,1748722234444,-1489.19,0.00016438,2]
[363432327,1748722234454,-1489.19,0.00016438,2]
[363432329,1748722234464,-1489.19,0.00016438,2]
[363432331,1748722234474,-153.37047306,0.00016438,2]
[363432332,1748722234484,-450.0,0.00016438,2]
[363432334,1748722234495,-430.0,0.00016438,2]
[363432336,1748722234505,-430.0,0.00016438,2]
[363432338,1748722234516,-430.0,0.00016438,2]
[363432340,1748722234525,-430.0,0.00016438,2]
[363432342,1748722234536,-470.0,0.00016438,2]
[363432344,1748722234546,-401.64651273,0.00016438,2]
[363432345,1748722234556,-430.0,0.00016438,2]
[363432347,1748722234566,-430.0,0.00016438,2]
[363432349,1748722234576,-430.0,0.00016438,2]
[363432351,1748722234585,-430.0,0.00016438,2]
[363432353,1748722234595,-430.0,0.00016438,2]
[363432355,1748722234604,-430.0,0.00016438,2]
[363432357,1748722234614,-430.0,0.00016438,2]
[363432359,1748722234626,-470.0,0.00016438,2]
[363432360,1748722234636,-430.0,0.00016438,2]
[363432362,1748722234650,-430.0,0.00016438,2]
[363432364,1748722234660,-430.0,0.00016438,2]
[363432366,1748722234670,-430.0,0.00016438,2]
[363432368,1748722234679,-430.0,0.00016438,2]
[363432370,1748722234689,-470.0,0.00016438,2]
[363432372,1748722234699,-430.0,0.00016438,2]
[363432374,1748722234709,-430.0,0.00016438,2]
[363432376,1748722234718,-430.0,0.00016438,2]
[363432377,1748722234728,-430.0,0.00016438,2]
[363432379,1748722234737,-430.0,0.00016438,2]
[363432381,1748722234746,-430.0,0.00016438,2]
[363432383,1748722234756,-430.0,0.00016438,2]
[363432385,1748722234766,-430.0,0.00016438,2]
[363432387,1748722234776,-450.0,0.00016438,2]
[363432389,1748722234785,-370.0,0.00016438,2]
[363432391,1748722234795,-430.0,0.00016438,2]
[363432393,1748722234804,-430.0,0.00016438,2]
[363432395,1748722234813,-370.0,0.00016438,2]
[363432397,1748722234823,-430.0,0.00016438,2]
[363432398,1748722234832,-256.45124002,0.00016438,2]
[363432400,1748722234842,-430.0,0.00016438,2]
[363432402,1748722234852,-430.0,0.00016438,2]
[363432404,1748722234862,-290.0,0.00016438,2]
[363432406,1748722234871,-470.0,0.00016438,2]
[363432408,1748722234881,-289.25454336,0.00016438,2]
[363432411,1748722234911,-140.74545664,0.00016438,2]
[363432413,1748722234921,-430.0,0.00016438,2]
[363432415,1748722234931,-430.0,0.00016438,2]
[363432417,1748722234940,-430.0,0.00016438,2]
[363432419,1748722234949,-430.0,0.00016438,2]
[363432421,1748722234959,-430.0,0.00016438,2]
[363432423,1748722234968,-470.0,0.00016438,2]
[363432425,1748722234978,-430.0,0.00016438,2]
[363432427,1748722234987,-470.0,0.00016438,2]
[363432429,1748722234997,-430.0,0.00016438,2]
[363432431,1748722235008,-430.0,0.00016438,2]
[363432433,1748722235018,-470.0,0.00016438,2]
[363432435,1748722235028,-470.0,0.00016438,2]
[363432436,1748722235037,-430.0,0.00016438,2]
[363432438,1748722235046,-430.0,0.00016438,2]
[363432440,1748722235056,-430.0,0.00016438,2]
[363432441,1748722235065,-470.0,0.00016438,2]
[363432442,1748722235075,-430.0,0.00016438,2]
[363432443,1748722235085,-295.40745137,0.00016438,2]